[Event "8th Gibraltar U16-Junior 2018"]
[Site "Caleta"]
[Date "2018.08.18"]
[Round "3"]
[White "Atara, Omeet J"]
[Black "Jayawarna, Nugith"]
[Result "0-1"]
[ECO "A45"]
[WhiteElo "1704"]
[BlackElo "2013"]
[Annotator "NA RC"]
[PlyCount "66"]
[EventDate "2018.08.17"]
[EventType "swiss"]
[EventCountry "GGB"]
[SourceTitle "playchess.com"]
[Source "ChessBase"]
[SourceQuality "1"]
[TimeControl "6600+10"]

{[%evp 11,66,8,32767,32767,32767,0,32767,9,32767,19,37,16,22,-73,-85,-88,-61,-87,-50,-78,32767,-71,32767,-71,32767,-107,32767,32767,32,-34,-45,-250,32767,32767,32767,32767,32767,32767,32767,32767,32767,32767,32767,32767,32767,-524,-519,-581,-563,32767,32767,-711,-762,-831,32767,-749,-631]} 1. d4 {[%emt 0:00:00]} Nf6 {[%emt 0:00:00]} 2. Bg5 {[%emt 0:00:00]} Ne4 {[%emt 0:00:02]} 3. Bf4 {[%emt 0:00:03]} d5 {[%emt 0:00:08]} 4. f3 {[%emt 0:00:37]} Nf6 {[%emt 0:00:12]} 5. Nc3 {[%emt 0:00:13]} e6 {[%emt 0:01:41]} 6. e4 {[%emt 0:00:26] LiveBook: 87 Games} Be7 {[%emt 0:04:25] A45: Damenbauernspiele (Trompowski-Angriff)} (6... Bb4 7. Qd3 O-O 8. O-O-O b6 9. Nge2 c5 10. exd5 Ba6 11. Qe3 exd5 12. a3 Bxc3 13. Nxc3 Bxf1 14. Rhxf1 Nc6 {1-0 (32) Wei,Y (2727)-Ma,Q (2637) China 2017}) 7. Qd2 {[%emt 0:06:17]} a6 {[%emt 0:06:11]} 8. O-O-O {[%emt 0:03:47]} O-O {[%emt 0:03:16]} 9. g4 {[%emt 0:11:31]} b5 {[%emt 0:02:22]} 10. g5 {[%emt 0:06:58]} Nh5 $146 {[%emt 0:04:48]} ({Vorgänger:} 10... Ne8 11. h4 b4 12. Na4 Nd7 13. b3 Bb7 14. Bd3 {½-½ (62) Lputian,S (2610)-Gufeld,E (2480) Los Angeles 1998}) 11. Be3 $1 {[%emt 0:02:54]} Bb7 {[%emt 0:02:13]} 12. Bd3 {[%emt 0:10:48] [#]} (12. exd5 $14 b4 13. Ne4) 12... c5 $1 {[%emt 0:11:35]} 13. exd5 $1 {[%emt 0:11:05]} cxd4 {[%emt 0:02:27]} 14. Bxd4 {[%emt 0:02:02]} Bxg5 {[%emt 0:01:02]} 15. Be3 {[%emt 0:00:08]} Bxe3 {[%emt 0:01:19]} 16. Qxe3 {[%emt 0:00:01]} exd5 {[%emt 0:00:50]} 17. Be4 {[%emt 0:04:38]} Nf6 {[%emt 0:22:47]} 18. Qd2 {[%emt 0:06:13]} Nxe4 {[%emt 0:15:23]} 19. fxe4 {[%emt 0:00:41]} Qa5 {[%emt 0:01:51]} (19... Qe7 $17 20. exd5 Nd7) 20. exd5 {[%emt 0:11:23]} (20. Nge2 $14) 20... b4 {[%emt 0:00:27]} 21. Nge2 $2 {[%emt 0:00:44]} (21. Ne4 $11) 21... bxc3 {[%emt 0:01:46]} 22. Nxc3 {[%emt 0:00:05]} Nd7 {[%emt 0:01:00]} 23. Qd4 {[%emt 0:03:52]} Qb6 {[%emt 0:02:40]} 24. Qg4 {[%emt 0:04:33]} Rad8 {[%emt 0:10:28]} 25. Rhg1 {[%emt 0:01:03]} g6 {[%emt 0:00:40]} 26. h4 {[%emt 0:04:26]} Nf6 {[%emt 0:02:16]} 27. Qg5 {[%emt 0:01:59]} Nxd5 {[%emt 0:01:19]} 28. Rd3 {[%emt 0:02:59]} Nxc3 {[%emt 0:01:15]} 29. Rxc3 {[%emt 0:00:03]} Rd5 {[%emt 0:01:03]} 30. Qg3 {[%emt 0:01:23]} Qd6 {[%emt 0:00:54]} 31. Qe3 {[%emt 0:00:29]} Rd8 {[%emt 0:00:40]} 32. Qe1 {[%emt 0:01:19]} Qf4+ {[%emt 0:01:14]} 33. Kb1 {[%emt 0:00:20]} Re5 $19 {[%emt 0:00:59]} 0-1

[Event "8th Gibraltar U16-Junior 2018"]
[Site "Caleta"]
[Date "2018.08.18"]
[Round "3"]
[White "Lorente Serrano, Rosa Adela"]
[Black "Guerreiro, Jose Velho"]
[Result "1/2-1/2"]
[ECO "D13"]
[WhiteElo "1682"]
[BlackElo "1525"]
[Annotator "NA RC"]
[PlyCount "106"]
[EventDate "2018.08.17"]
[EventType "swiss"]
[EventCountry "GGB"]
[SourceTitle "playchess.com"]
[Source "ChessBase"]
[SourceQuality "1"]
[TimeControl "6600+10"]

1. d4 {[%emt 0:00:00]} d5 {[%emt 0:00:13]} 2. c4 {[%emt 0:00:04]} c6 {[%emt 0:01:00]} 3. Nc3 {[%emt 0:00:54]} Nf6 {[%emt 0:00:18]} 4. Bg5 {[%emt 0:01:30]} e6 {[%emt 0:01:23]} 5. cxd5 {[%emt 0:01:22]} cxd5 {[%emt 0:00:28]} 6. Nf3 {[%emt 0:03:42]} Be7 {[%emt 0:01:05]} 7. e3 {[%emt 0:03:22]} O-O {[%emt 0:02:20]} 8. Bd3 {[%emt 0:02:49]} b6 {[%emt 0:16:13]} 9. O-O {[%emt 0:06:28]} Bb7 {[%emt 0:04:21]} 10. a3 {[%emt 0:09:12]} h6 {[%emt 0:07:20]} 11. Bh4 {[%emt 0:03:43]} Nc6 {[%emt 0:04:13]} 12. b4 {[%emt 0:05:47]} Rc8 {[%emt 0:02:49]} 13. Rc1 {[%emt 0:00:16]} Ng4 {[%emt 0:02:46]} 14. Bxe7 {[%emt 0:06:29]} Qxe7 {[%emt 0:01:23]} 15. Qb3 {[%emt 0:02:35]} Rfd8 {[%emt 0:07:53]} 16. h3 {[%emt 0:02:48]} Nf6 {[%emt 0:01:07]} 17. Rb1 {[%emt 0:02:33]} Nb8 {[%emt 0:03:28]} 18. Rfc1 {[%emt 0:01:36]} Ba6 {[%emt 0:06:04]} 19. b5 {[%emt 0:02:19]} Bb7 {[%emt 0:01:38]} 20. a4 {[%emt 0:00:39]} Rc7 {[%emt 0:00:41]} 21. a5 {[%emt 0:08:20]} Rdc8 {[%emt 0:01:47]} 22. a6 {[%emt 0:02:18]} Ba8 {[%emt 0:00:50]} 23. Qb2 {[%emt 0:00:56]} Nbd7 {[%emt 0:03:44]} 24. Na4 {[%emt 0:02:03]} Ne4 {[%emt 0:03:36]} 25. Bxe4 {[%emt 0:11:40]} dxe4 {[%emt 0:01:21]} 26. Rxc7 {[%emt 0:01:42]} Rxc7 {[%emt 0:00:33]} 27. Nd2 {[%emt 0:00:32]} Nf6 {[%emt 0:01:00]} 28. Rc1 {[%emt 0:00:23]} Nd5 {[%emt 0:01:17]} 29. Nc3 {[%emt 0:02:04]} Qb4 {[%emt 0:03:00]} 30. Qxb4 {[%emt 0:00:47]} Nxb4 {[%emt 0:01:07]} 31. Rb1 {[%emt 0:04:01]} Rxc3 {[%emt 0:06:27]} 32. Rxb4 {[%emt 0:00:05]} Bd5 {[%emt 0:00:31]} 33. Rb2 {[%emt 0:00:40]} Kf8 {[%emt 0:00:49]} 34. Kf1 {[%emt 0:00:14]} g5 {[%emt 0:01:03]} 35. Ke2 {[%emt 0:02:44]} Ke7 {[%emt 0:00:38]} 36. f3 {[%emt 0:00:15]} exf3+ {[%emt 0:00:51]} 37. gxf3 {[%emt 0:00:07]} f5 {[%emt 0:00:26]} 38. e4 {[%emt 0:02:02]} Bc4+ {[%emt 0:02:43]} 39. Nxc4 {[%emt 0:00:15]} Rxc4 {[%emt 0:00:09]} 40. Kd3 {[%emt 0:02:48]} Rc1 {[%emt 0:00:58]} 41. Rc2 {[%emt 0:02:26]} Rxc2 {[%emt 0:00:10]} 42. Kxc2 {[%emt 0:00:01]} Kd6 {[%emt 0:00:07]} 43. Kd3 {[%emt 0:00:17]} h5 {[%emt 0:00:57]} 44. Ke3 {[%emt 0:00:39]} f4+ {[%emt 0:12:31]} 45. Ke2 {[%emt 0:03:40]} e5 {[%emt 0:01:01]} 46. Kd3 {[%emt 0:00:04]} Ke6 {[%emt 0:00:18]} 47. Kc3 {[%emt 0:00:56]} Kd6 {[%emt 0:00:49]} 48. Kd3 {[%emt 0:00:05]} Ke6 {[%emt 0:00:04]} 49. Kc3 {[%emt 0:00:08]} exd4+ {[%emt 0:00:45]} 50. Kxd4 {[%emt 0:00:07]} Kd6 {[%emt 0:00:01]} 51. e5+ {[%emt 0:00:23]} Ke6 {[%emt 0:00:01]} 52. Ke4 {[%emt 0:00:10]} h4 {[%emt 0:00:06]} 53. Kd4 {[%emt 0:00:20]} Ke7 {[%emt 0:00:10]} 1/2-1/2

[Event "8th Gibraltar U16-Junior 2018"]
[Site "Caleta"]
[Date "2018.08.18"]
[Round "3"]
[White "Ye, Kevin"]
[Black "Cox, Toby"]
[Result "1-0"]
[ECO "B00"]
[WhiteElo "1653"]
[BlackElo "1479"]
[Annotator "NA RC"]
[PlyCount "69"]
[EventDate "2018.08.17"]
[EventType "swiss"]
[EventCountry "GGB"]
[SourceTitle "playchess.com"]
[Source "ChessBase"]
[SourceQuality "1"]
[TimeControl "6600+10"]

1. e4 {[%emt 0:00:00]} e6 {[%emt 0:00:00]} 2. d4 {[%emt 0:00:01]} b6 {[%emt 0:00:00]} 3. Nf3 {[%emt 0:00:25]} Bb7 {[%emt 0:00:04]} 4. Bd3 {[%emt 0:00:08]} d6 {[%emt 0:00:34]} 5. O-O {[%emt 0:00:30]} Nd7 {[%emt 0:00:05]} 6. c3 {[%emt 0:00:32]} e5 {[%emt 0:00:45]} 7. Re1 {[%emt 0:00:29]} Ngf6 {[%emt 0:00:15]} 8. Nbd2 {[%emt 0:00:36]} Be7 {[%emt 0:00:08]} 9. Nf1 {[%emt 0:00:14]} c5 {[%emt 0:02:54]} 10. Ng3 {[%emt 0:01:21]} h5 {[%emt 0:05:14]} 11. Bg5 {[%emt 0:06:57]} g6 {[%emt 0:05:48]} 12. Qb3 {[%emt 0:07:25]} Ng4 {[%emt 0:06:11]} 13. Bc4 {[%emt 0:20:08]} Rh7 {[%emt 0:04:16]} 14. h4 {[%emt 0:02:24]} f6 {[%emt 0:03:31]} 15. Bd2 {[%emt 0:01:36]} Qc7 {[%emt 0:04:37]} 16. Nh2 {[%emt 0:01:57]} Nxh2 {[%emt 0:05:11]} 17. Bg8 {[%emt 0:00:54]} Nf3+ {[%emt 0:02:01]} 18. gxf3 {[%emt 0:00:33]} O-O-O {[%emt 0:03:13]} 19. Bxh7 {[%emt 0:00:21]} c4 {[%emt 0:02:25]} 20. Qa4 {[%emt 0:01:19]} Nf8 {[%emt 0:02:27]} 21. Bg8 {[%emt 0:00:41]} Bc6 {[%emt 0:01:40]} 22. Qxc4 {[%emt 0:00:37]} f5 {[%emt 0:01:23]} 23. Be6+ {[%emt 0:02:07]} Nxe6 {[%emt 0:00:59]} 24. Qxe6+ {[%emt 0:00:02]} Kb8 {[%emt 0:00:07]} 25. Qxg6 {[%emt 0:00:28]} Bxh4 {[%emt 0:00:53]} 26. Nxf5 {[%emt 0:00:54]} Qc8 {[%emt 0:01:35]} 27. Bh6 {[%emt 0:02:41]} Rg8 {[%emt 0:03:32]} 28. Bg7 {[%emt 0:00:10]} Qd7 {[%emt 0:02:14]} 29. c4 {[%emt 0:04:17]} exd4 {[%emt 0:01:17]} 30. Kf1 {[%emt 0:00:58]} Bb7 {[%emt 0:02:01]} 31. Qxh5 {[%emt 0:00:50]} Bd8 {[%emt 0:00:24]} 32. Bxd4 {[%emt 0:00:46]} Ba6 {[%emt 0:00:34]} 33. b3 {[%emt 0:00:40]} b5 {[%emt 0:01:17]} 34. Nxd6 {[%emt 0:00:30]} Bc7 {[%emt 0:01:26]} 35. Nxb5 {[%emt 0:00:25]} 1-0

[Event "8th Gibraltar U16-Junior 2018"]
[Site "Caleta"]
[Date "2018.08.18"]
[Round "3"]
[White "Greco, Joseph"]
[Black "Mahtani, Johan"]
[Result "1-0"]
[ECO "C54"]
[WhiteElo "1626"]
[BlackElo "1166"]
[Annotator "NA RC"]
[PlyCount "113"]
[EventDate "2018.08.17"]
[EventType "swiss"]
[EventCountry "GGB"]
[SourceTitle "playchess.com"]
[Source "ChessBase"]
[SourceQuality "1"]
[TimeControl "6600+10"]

1. e4 {[%emt 0:00:00]} e5 {[%emt 0:00:00]} 2. Nf3 {[%emt 0:00:00]} Nc6 {[%emt 0:00:23]} 3. Bc4 {[%emt 0:00:17]} Bc5 {[%emt 0:00:18]} 4. c3 {[%emt 0:00:13]} d6 {[%emt 0:00:18]} 5. h3 {[%emt 0:00:20]} Nf6 {[%emt 0:00:47]} 6. d3 {[%emt 0:00:15]} O-O {[%emt 0:00:18]} 7. a4 {[%emt 0:00:56]} a5 {[%emt 0:00:29]} 8. O-O {[%emt 0:01:10]} Qe7 {[%emt 0:00:34]} 9. Re1 {[%emt 0:01:30]} Be6 {[%emt 0:00:16]} 10. Qb3 {[%emt 0:06:39]} Bxc4 {[%emt 0:01:29]} 11. Qxc4 {[%emt 0:00:16]} Bb6 {[%emt 0:01:42]} 12. Nbd2 {[%emt 0:01:56]} Rfe8 {[%emt 0:02:06]} 13. Nf1 {[%emt 0:00:23]} Qe6 {[%emt 0:01:23]} 14. Qxe6 {[%emt 0:02:59]} Rxe6 {[%emt 0:00:09]} 15. Ng5 {[%emt 0:00:47]} Ree8 {[%emt 0:00:28]} 16. Be3 {[%emt 0:00:12]} Bxe3 {[%emt 0:03:34]} 17. Nxe3 {[%emt 0:00:19]} Ne7 {[%emt 0:00:57]} 18. Nf3 {[%emt 0:02:27]} Nd7 {[%emt 0:00:33]} 19. b4 {[%emt 0:02:51]} f6 {[%emt 0:02:08]} 20. Reb1 {[%emt 0:02:06]} b6 {[%emt 0:00:33]} 21. Nd2 {[%emt 0:06:37]} Nc6 {[%emt 0:02:10]} 22. Nd5 {[%emt 0:01:36]} Ra7 {[%emt 0:01:52]} 23. b5 {[%emt 0:19:40]} Ne7 {[%emt 0:00:48]} 24. c4 {[%emt 0:00:26]} Nc5 {[%emt 0:00:24]} 25. Ra3 {[%emt 0:00:30]} Nxd5 {[%emt 0:01:33]} 26. cxd5 {[%emt 0:00:31]} Re7 {[%emt 0:03:24]} 27. Rd1 {[%emt 0:01:12]} Rf7 {[%emt 0:01:36]} 28. Nb3 {[%emt 0:09:23]} Nxb3 {[%emt 0:02:38]} 29. Rxb3 {[%emt 0:00:27]} f5 {[%emt 0:02:45]} 30. f3 {[%emt 0:02:26]} g6 {[%emt 0:02:12]} 31. Rc3 {[%emt 0:00:12]} Kf8 {[%emt 0:00:27]} 32. Rdc1 {[%emt 0:00:24]} f4 {[%emt 0:02:06]} 33. h4 {[%emt 0:02:08]} Ke8 {[%emt 0:00:34]} 34. Kh2 {[%emt 0:00:49]} Kd7 {[%emt 0:01:01]} 35. Rc6 {[%emt 0:00:27]} h5 {[%emt 0:02:46]} 36. Kh3 {[%emt 0:00:37]} Rf8 {[%emt 0:02:12]} 37. R1c4 {[%emt 0:01:43]} Rg8 {[%emt 0:00:43]} 38. Rc2 {[%emt 0:00:55]} Rg7 {[%emt 0:01:38]} 39. g4 {[%emt 0:01:46]} fxg3 {[%emt 0:00:47]} 40. Kxg3 {[%emt 0:00:18]} Rf7 {[%emt 0:00:13]} 41. d4 {[%emt 0:01:23]} exd4 {[%emt 0:00:46]} 42. Rd2 {[%emt 0:01:11]} Ra8 {[%emt 0:00:41]} 43. Rxd4 {[%emt 0:00:42]} Raf8 {[%emt 0:00:11]} 44. Rd3 {[%emt 0:00:09]} Re7 {[%emt 0:00:46]} 45. Rdc3 {[%emt 0:00:20]} Rc8 {[%emt 0:00:24]} 46. R3c4 {[%emt 0:06:20]} Re5 {[%emt 0:05:18]} 47. f4 {[%emt 0:01:28]} Re7 {[%emt 0:00:02]} 48. Kf3 {[%emt 0:01:33]} Rf7 {[%emt 0:01:18]} 49. Ke3 {[%emt 0:01:01]} Re7 {[%emt 0:00:39]} 50. Rc1 {[%emt 0:01:33]} Rf7 {[%emt 0:02:26]} 51. e5 {[%emt 0:02:25]} Re7 {[%emt 0:03:20]} 52. e6+ {[%emt 0:00:15]} Ke8 {[%emt 0:00:01]} 53. Rxd6 {[%emt 0:00:50]} Kf8 {[%emt 0:01:27]} 54. Rxb6 {[%emt 0:00:33]} Kg7 {[%emt 0:00:09]} 55. Rb7 {[%emt 0:00:39]} Kf6 {[%emt 0:00:13]} 56. b6 {[%emt 0:00:18]} cxb6 {[%emt 0:01:21]} 57. Rxe7 {[%emt 0:00:03]} 1-0

[Event "8th Gibraltar U16-Junior 2018"]
[Site "Caleta"]
[Date "2018.08.18"]
[Round "3"]
[White "Shepherd, Tom"]
[Black "Samworth-Calvier, Juju"]
[Result "1-0"]
[ECO "A84"]
[WhiteElo "1531"]
[BlackElo "1816"]
[Annotator "NA RC"]
[PlyCount "225"]
[EventDate "2018.08.17"]
[EventType "swiss"]
[EventCountry "GGB"]
[SourceTitle "playchess.com"]
[Source "ChessBase"]
[SourceQuality "1"]
[TimeControl "6600+10"]

1. d4 {[%emt 0:00:00]} e6 {[%emt 0:00:00]} 2. c4 {[%emt 0:00:00]} f5 {[%emt 0:00:06]} 3. Nf3 {[%emt 0:00:00]} Nf6 {[%emt 0:00:05]} 4. e3 {[%emt 0:00:00]} Bb4+ {[%emt 0:00:41]} 5. Bd2 {[%emt 0:00:33] A84: Holländische Verteidigung} (5. Nbd2 O-O 6. Bd3 d5 7. O-O c6 8. Ne5 Nbd7 9. cxd5 cxd5 10. Ndf3 Ne4 11. Nxd7 Bxd7 12. Qb3 Qb6 {0-1 (105) Salinas Herrera,P (2466)-Agdestein,S (2602) Doha 2016}) 5... Bxd2+ {[%emt 0:00:51]} 6. Nbxd2 {[%emt 0:00:10]} b6 {[%emt 0:00:46]} 7. Bd3 {[%emt 0:00:21]} Bb7 {[%emt 0:00:23] LiveBook: 5 Games} 8. O-O {[%emt 0:00:07]} O-O {[%emt 0:00:34]} 9. Qc2 {[%emt 0:02:50]} d6 {[%emt 0:12:02]} 10. e4 {[%emt 0:01:46]} fxe4 {[%emt 0:03:59]} 11. Nxe4 {[%emt 0:00:28]} h6 $146 {[%emt 0:00:39]} ({Vorgänger:} 11... Bxe4 12. Bxe4 {1-0 (41) Oliver,M (1874)-Wilson,A (2042) England 2011}) 12. Nxf6+ {[%emt 0:07:26]} Qxf6 {[%emt 0:00:57]} 13. Be4 {[%emt 0:00:04]} d5 {[%emt 0:06:24]} 14. cxd5 {[%emt 0:01:18]} exd5 {[%emt 0:00:16]} 15. Bh7+ {[%emt 0:10:38]} (15. Qxc7 dxe4 16. Qxb7 exf3 $19) 15... Kh8 {[%emt 0:00:02]} 16. Ne5 {[%emt 0:00:22]} ({Worse is} 16. Qxc7 Ba6 $17) 16... c5 {[%emt 0:12:03]} 17. Rae1 {[%emt 0:05:19]} ({Jedoch nicht} 17. Ng6+ $6 Kxh7 18. Nxf8+ Kg8 $16) 17... Ba6 $2 {[%emt 0:02:22]} (17... Nc6 $16) 18. Ng6+ {[%emt 0:09:51]} Kxh7 {[%emt 0:00:08]} 19. Nxf8+ {[%emt 0:00:04]} Kg8 {[%emt 0:00:11]} 20. Qh7+ {[%emt 0:00:30]} Kf7 {[%emt 0:01:36]} 21. Re6 {[%emt 0:03:47]} Nd7 {[%emt 0:06:18]} 22. Rxf6+ {[%emt 0:00:43]} Nxf6 {[%emt 0:00:02]} 23. Qg6+ {[%emt 0:02:07]} Kxf8 {[%emt 0:00:09]} 24. Rd1 {[%emt 0:02:16]} Re8 {[%emt 0:00:30]} 25. dxc5 {[%emt 0:01:09]} bxc5 {[%emt 0:00:14]} 26. h3 {[%emt 0:01:54]} d4 {[%emt 0:00:48]} 27. g4 {[%emt 0:01:50]} Be2 {[%emt 0:02:52]} 28. Rd2 {[%emt 0:01:52]} d3 {[%emt 0:00:05]} 29. Rxd3 {[%emt 0:00:21]} Bxd3 {[%emt 0:00:06]} 30. Qxd3 {[%emt 0:00:03]} Ne4 {[%emt 0:06:01]} 31. f3 {[%emt 0:05:52]} Ng5 {[%emt 0:00:44]} 32. Kg2 {[%emt 0:00:31]} Ne6 {[%emt 0:00:33]} 33. Qd6+ {[%emt 0:00:41]} Kf7 {[%emt 0:00:09]} 34. Qd7+ {[%emt 0:01:23]} Re7 {[%emt 0:00:07]} 35. Qd6 {[%emt 0:00:23]} g5 {[%emt 0:00:32]} 36. Kg3 {[%emt 0:01:13]} Kf6 {[%emt 0:03:01]} 37. Qd5 {[%emt 0:01:44]} Nf4 {[%emt 0:00:51]} 38. Qf5+ {[%emt 0:00:23]} Kg7 {[%emt 0:00:10]} 39. h4 {[%emt 0:02:10]} Ne2+ {[%emt 0:00:53]} 40. Kf2 {[%emt 0:01:18]} gxh4 {[%emt 0:01:47]} 41. g5 {[%emt 0:03:40]} hxg5 {[%emt 0:02:10]} 42. Qxg5+ {[%emt 0:00:20]} Kf8 {[%emt 0:00:26]} 43. Qxh4 {[%emt 0:00:23]} Nd4 {[%emt 0:04:57]} 44. b4 {[%emt 0:02:25]} Re2+ {[%emt 0:01:52]} 45. Kf1 {[%emt 0:00:13]} Rxa2 {[%emt 0:00:38]} 46. Qh8+ {[%emt 0:01:17]} (46. Qd8+ $142 Kg7 47. bxc5 Ra1+ 48. Kg2) 46... Ke7 {[%emt 0:01:19]} 47. Qe5+ {[%emt 0:00:28]} Ne6 {[%emt 0:00:02]} 48. bxc5 {[%emt 0:00:20]} Ra5 {[%emt 0:00:45]} 49. Qd6+ {[%emt 0:00:15]} Kf6 {[%emt 0:00:21]} 50. c6 {[%emt 0:00:43]} Ra1+ {[%emt 0:00:29]} 51. Kf2 {[%emt 0:00:49]} Rc1 {[%emt 0:00:12]} 52. f4 {[%emt 0:00:57]} Rc2+ {[%emt 0:00:47]} 53. Kg3 {[%emt 0:00:33]} Rc3+ {[%emt 0:00:32]} 54. Kg4 {[%emt 0:00:39]} Rc4 {[%emt 0:00:15]} 55. Qe5+ {[%emt 0:00:35]} Ke7 {[%emt 0:00:15]} 56. c7 {[%emt 0:01:39]} a5 {[%emt 0:03:05]} 57. c8=Q {[%emt 0:03:38]} Rxc8 {[%emt 0:00:07]} 58. f5 {[%emt 0:00:04]} Rc4+ {[%emt 0:00:16]} 59. Kg3 {[%emt 0:00:31]} Rc6 {[%emt 0:00:39]} 60. fxe6 {[%emt 0:00:07]} a4 {[%emt 0:05:46]} 61. Qb5 {[%emt 0:00:27]} Rxe6 {[%emt 0:01:14]} 62. Qxa4 {[%emt 0:00:05]} Rd6 {[%emt 0:00:39]} 63. Kf4 {[%emt 0:00:28]} Rf6+ {[%emt 0:00:09]} 64. Kg5 {[%emt 0:00:04]} Rd6 {[%emt 0:00:11]} 65. Qb4 {[%emt 0:00:18]} Kd7 {[%emt 0:00:16]} 66. Kf5 {[%emt 0:00:21]} Rc6 {[%emt 0:00:26]} 67. Ke5 {[%emt 0:00:44]} Kc7 {[%emt 0:01:52]} 68. Kd5 {[%emt 0:00:09]} Rb6 {[%emt 0:00:12]} 69. Qc5+ {[%emt 0:00:15]} Kb7 {[%emt 0:00:13]} 70. Qe7+ {[%emt 0:00:14]} Ka6 {[%emt 0:01:54]} 71. Kc5 {[%emt 0:00:15]} Rb5+ {[%emt 0:00:09]} 72. Kc4 {[%emt 0:00:08]} Rb6 {[%emt 0:00:06]} 73. Qc7 {[%emt 0:00:25]} Rb7 {[%emt 0:00:36]} 74. Qc8 {[%emt 0:00:13]} Ka7 $11 {[%emt 0:00:12]} 75. Kc5 {[%emt 0:00:30]} (75. Qe6 Rb6) 75... Rb5+ $1 {[%emt 0:00:26]} 76. Kc4 {[%emt 0:00:29]} Rb6 $2 {[%emt 0:00:05]} 77. Qc7+ {[%emt 0:00:16]} (77. Qd8 {setzt Matt} Rb7 78. Kc5 Rb2 79. Qc7+ Ka8 80. Qc6+ Rb7 81. Qh1 Ka7 82. Kc6) 77... Ka8 {[%emt 0:00:20]} 78. Qc8+ $2 {[%emt 0:01:31]} (78. Qd8+ {mates} Kb7 79. Qd7+ Kb8 80. Kc5 Ra6 81. Kb5 Ra1 82. Qd8+ Kb7 83. Qd5+ Kc8 84. Qf5+ Kc7 85. Qe5+ Kd7 86. Qxa1) 78... Ka7 {[%emt 0:00:05]} 79. Kc5 $2 {[%emt 0:00:59]} Rb5+ {[%emt 0:00:08]} 80. Kd6 {[%emt 0:00:22]} Rb6+ {[%emt 0:00:19]} 81. Kd7 {[%emt 0:00:28]} Rb7+ {[%emt 0:00:42]} 82. Ke6 {[%emt 0:00:45]} Rb6+ {[%emt 0:00:23]} 83. Kd5 {[%emt 0:00:04]} Rb5+ {[%emt 0:00:41]} 84. Kc4 {[%emt 0:00:05]} Rb6 {[%emt 0:00:22]} 85. Qc5 {[%emt 0:00:06]} Ka8 {[%emt 0:00:14]} 86. Qa5+ {[%emt 0:00:04]} Kb7 {[%emt 0:00:16]} 87. Kc5 {[%emt 0:00:12]} Rc6+ $1 {[%emt 0:00:23]} 88. Kb5 {[%emt 0:00:22]} Rd6 {[%emt 0:00:11]} 89. Kc5 $2 {[%emt 0:00:26]} (89. Qa2 {mates} Kc7 90. Qf7+ Kd8 91. Kc5 Ra6 92. Qd5+ Kc8 93. Qe4 Kc7 94. Qe7+ Kb8 95. Kb5) 89... Rc6+ {[%emt 0:00:22]} 90. Kd5 {[%emt 0:00:03]} Rb6 {[%emt 0:00:23]} 91. Qe1 {[%emt 0:00:16]} Ka7 {[%emt 0:01:45]} 92. Kc5 {[%emt 0:00:26]} Rb7 {[%emt 0:00:42]} 93. Kc6 {[%emt 0:00:35]} (93. Qa5+ $142 Kb8 94. Kc6 Rb1 95. Qe5+ Ka7 96. Qd4+ Ka8 97. Qh8+ Ka7 98. Qh7+ Kb8 99. Qxb1+ Kc8 100. Qh7 Kd8 101. Qd7#) 93... Rb6+ {[%emt 0:00:18]} 94. Kc5 {[%emt 0:00:20]} Rb7 {[%emt 0:00:13]} 95. Qa1+ {[%emt 0:00:02]} Kb8 {[%emt 0:00:06]} 96. Qa5 {[%emt 0:00:54]} Rc7+ {[%emt 0:00:26]} 97. Kb6 {[%emt 0:00:44]} Re7 {[%emt 0:01:49]} 98. Qd5 {[%emt 0:00:24]} Kc8 {[%emt 0:01:15]} 99. Qf5+ {[%emt 0:00:57]} Kd8 {[%emt 0:00:35]} 100. Kc6 {[%emt 0:00:30]} Re6+ {[%emt 0:00:18]} 101. Kd5 {[%emt 0:00:12]} Rb6 $2 {[%emt 0:01:23] [#]} (101... Ra6 $11) 102. Qf8+ $2 {[%emt 0:00:17]} (102. Kc5 $1 {mates} Rb2 103. Qf6+ Kd7 104. Qxb2 Ke6 105. Qd4 Kf5 106. Kd6 Kg6 107. Ke6) 102... Kc7 {[%emt 0:00:18]} 103. Qe7+ {[%emt 0:00:09]} Kb8 {[%emt 0:00:20]} 104. Kc5 {[%emt 0:00:17]} Rb7 {[%emt 0:00:45]} 105. Qd8+ {[%emt 0:00:16]} Ka7 {[%emt 0:00:06]} 106. Kc6 {[%emt 0:00:18]} Rf7 {[%emt 0:01:59]} 107. Qa5+ $18 {[%emt 0:00:51]} (107. Qd4+ $142 Ka8 108. Kb6 Rb7+ 109. Ka6 Rb6+ 110. Kxb6 Kb8 111. Qh8#) 107... Kb8 {[%emt 0:00:11]} 108. Qb4+ {[%emt 0:00:17]} Ka7 {[%emt 0:00:24]} 109. Qa4+ {[%emt 0:00:10]} Kb8 {[%emt 0:00:12]} 110. Qb3+ {[%emt 0:00:04]} Ka7 {[%emt 0:02:10]} 111. Qxf7+ {[%emt 0:00:06]} Ka6 {[%emt 0:00:11]} 112. Qb7+ {[%emt 0:00:04]} Ka5 {[%emt 0:01:31]} 113. Qb5# {[%emt 0:00:03]} 1-0

[Event "8th Gibraltar U16-Junior 2018"]
[Site "Caleta"]
[Date "2018.08.18"]
[Round "3"]
[White "Schulz, Victor"]
[Black "Kirupakaran, Vishnu"]
[Result "1-0"]
[ECO "B22"]
[WhiteElo "1510"]
[BlackElo "1786"]
[Annotator "NA RC"]
[PlyCount "69"]
[EventDate "2018.08.17"]
[EventType "swiss"]
[EventCountry "GGB"]
[SourceTitle "playchess.com"]
[Source "ChessBase"]
[SourceQuality "1"]
[TimeControl "6600+10"]

1. e4 {[%emt 0:00:00]} c5 {[%emt 0:00:00]} 2. c3 {[%emt 0:00:00]} Nf6 {[%emt 0:00:00]} 3. e5 {[%emt 0:00:02]} Nd5 {[%emt 0:00:00]} 4. d4 {[%emt 0:00:07]} cxd4 {[%emt 0:00:04]} 5. Nf3 {[%emt 0:00:04]} Nc6 {[%emt 0:00:05]} 6. Bc4 {[%emt 0:00:33]} e6 {[%emt 0:00:05]} 7. cxd4 {[%emt 0:01:03]} d6 {[%emt 0:00:09]} 8. Bxd5 {[%emt 0:00:31]} exd5 {[%emt 0:00:05]} 9. Be3 {[%emt 0:13:24]} Bg4 {[%emt 0:01:31]} 10. exd6 {[%emt 0:00:23]} Bxd6 {[%emt 0:00:07]} 11. Nbd2 {[%emt 0:00:51]} Bb4 {[%emt 0:06:46]} 12. O-O {[%emt 0:03:14]} O-O {[%emt 0:16:19]} 13. Qb3 {[%emt 0:04:58]} a5 {[%emt 0:09:49]} 14. Qd3 {[%emt 0:11:16]} Bd6 {[%emt 0:06:50]} 15. b3 {[%emt 0:07:41]} Qb6 {[%emt 0:11:43]} 16. a3 {[%emt 0:04:41]} Rac8 {[%emt 0:12:58]} 17. Ne5 {[%emt 0:02:37]} Be6 {[%emt 0:09:17]} 18. Ndf3 {[%emt 0:03:40]} f6 {[%emt 0:00:52]} 19. Nxc6 {[%emt 0:00:27]} Rxc6 {[%emt 0:00:54]} 20. a4 {[%emt 0:00:37]} Rfc8 {[%emt 0:04:39]} 21. Rac1 {[%emt 0:01:44]} Ba3 {[%emt 0:00:32]} 22. Rxc6 {[%emt 0:01:42]} Rxc6 {[%emt 0:03:04]} 23. Ra1 {[%emt 0:03:15]} Bb2 {[%emt 0:09:07]} 24. Rb1 {[%emt 0:04:45]} Rc3 {[%emt 0:00:27]} 25. Qe2 {[%emt 0:01:51]} Ba3 {[%emt 0:00:20]} 26. Bd2 {[%emt 0:01:54]} Rc6 {[%emt 0:00:10]} 27. Qe1 {[%emt 0:00:58]} Bf5 {[%emt 0:06:33]} 28. Bxa5 {[%emt 0:01:42]} Qa6 {[%emt 0:00:09]} 29. Rd1 {[%emt 0:00:35]} Bc2 {[%emt 0:04:39]} 30. Qe8+ {[%emt 0:02:05]} Bf8 {[%emt 0:00:07]} 31. Bb4 {[%emt 0:00:28]} h6 {[%emt 0:04:05]} 32. Qxf8+ {[%emt 0:01:18]} Kh7 {[%emt 0:00:05]} 33. Re1 {[%emt 0:02:15]} Bxb3 {[%emt 0:01:36]} 34. Re7 {[%emt 0:02:21]} Rc1+ {[%emt 0:00:11]} 35. Be1 {[%emt 0:00:36]} 1-0